bitfinex-derivatives/quotes_BNBF0:USTF0_20250510
["timestamp","ask_amount","ask_price","bid_price","bid_amount"]
[1746909909726,0.28098164,655.01,654.04,1.58810807]
[1746909910021,0.28098164,655.0,654.04,1.58810807]
[1746909910420,0.28098164,654.99,654.04,1.58810807]
[1746909910926,0.28098164,654.98,654.04,1.58810807]
[1746909911226,0.28098164,654.97,654.04,1.58810807]
[1746909911628,0.28098164,655.01,654.04,1.58810807]
[1746909912022,2.24702707,655.08,654.04,1.58810807]
[1746909912228,0.28098164,655.07,654.04,1.58810807]
[1746909912626,0.5469462,655.07,654.04,1.58810807]
[1746909912829,0.28098164,655.06,654.04,1.58810807]
[1746909914522,0.28098164,655.07,654.04,1.58810807]
[1746909915023,0.85402162,655.91,654.04,1.58810807]
[1746909915427,0.28098164,655.9,654.04,1.58810807]
[1746909915623,0.54686187,655.9,654.04,1.58810807]
[1746909915824,0.28098164,655.89,654.04,1.58810807]
[1746909916127,0.26588023,655.9,654.04,1.58810807]
[1746909916424,0.2809357,655.89,654.04,1.58810807]
[1746909916823,0.2809357,655.88,654.04,1.58810807]
[1746909917128,0.2809357,655.87,654.04,1.58810807]
[1746909917628,0.2809357,655.86,654.04,1.58810807]
[1746909917928,0.85396287,655.85,654.04,1.58810807]
[1746909918330,0.85396287,655.84,654.04,1.58810807]
[1746909918631,0.85396287,655.83,654.04,1.58810807]
[1746909919027,0.85396287,655.82,654.04,1.58810807]
[1746909919232,1.96604543,655.47,654.04,1.58810807]
[1746909919426,0.85396287,655.46,654.04,1.58810807]
[1746909919731,0.2809357,655.45,654.04,1.58810807]
[1746909920033,0.2809357,655.44,654.04,1.58810807]
[1746909920329,0.2809357,655.43,654.04,1.58810807]
[1746909920726,0.2809357,655.42,654.04,1.58810807]
[1746909921030,0.2809357,655.41,654.04,1.58810807]
[1746909921331,0.2809357,655.4,654.04,1.58810807]
[1746909921729,0.2809357,655.39,654.04,1.58810807]
[1746909922030,0.2809357,655.38,654.04,1.58810807]
[1746909922434,0.2809357,655.37,654.04,1.58810807]
[1746909923331,0.2809357,655.36,654.04,1.58810807]
[1746909923731,0.2809357,655.35,654.04,1.58810807]
[1746909924032,0.2809357,655.34,654.04,1.58810807]
[1746909924538,0.2809357,655.33,654.04,1.58810807]
[1746909924939,0.2809357,655.32,654.04,1.58810807]
[1746909925337,0.2809357,655.31,654.04,1.58810807]
[1746909925636,0.2809357,655.3,654.04,1.58810807]
[1746909925833,0.54681288,655.3,654.04,1.58810807]
[1746909926136,0.2809357,655.29,654.04,1.58810807]
[1746909926638,0.2809357,655.28,654.04,1.58810807]
[1746909927140,0.2809357,655.27,654.04,1.58810807]
[1746909927538,0.2809357,655.46,654.04,1.58810807]
[1746909927742,0.26584266,655.26,654.04,1.58810807]
[1746909927934,0.2809357,655.46,654.04,1.58810807]
[1746909928134,0.26584266,655.25,654.04,1.58810807]
[1746909928439,0.2809357,655.46,654.04,1.58810807]
[1746909928639,0.2809357,655.24,654.04,1.58810807]
[1746909928938,0.2809357,655.46,654.04,1.58810807]
[1746909929242,0.26584164,655.23,654.04,1.58810807]
[1746909929539,0.2809357,655.46,654.04,1.58810807]
[1746909930639,0.26584164,655.45,654.04,1.58810807]
[1746909930939,0.2809357,655.44,654.04,1.58810807]
[1746909932643,0.2658457,655.43,654.04,1.58810807]
[1746909933336,0.2809357,655.42,654.04,1.58810807]
[1746909935943,0.2658457,655.43,654.04,1.58810807]
[1746909936342,0.2807799,655.42,654.04,1.58810807]
[1746909936841,0.2807799,655.41,654.04,1.58810807]
[1746909937243,0.2807799,655.4,654.04,1.58810807]
[1746909937644,0.2807799,655.39,654.04,1.58810807]
[1746909938042,0.2807799,655.38,654.04,1.58810807]
[1746909938444,0.2807799,655.37,654.04,1.58810807]
[1746909938644,0.54662763,655.37,654.04,1.58810807]
[1746909938942,0.2807799,655.36,654.04,1.58810807]
[1746909939142,0.2807799,655.35,654.04,1.58810807]
[1746909939744,0.2807799,655.34,654.04,1.58810807]
[1746909940039,0.2807799,655.33,654.04,1.58810807]
[1746909940442,0.2807799,655.32,654.04,1.58810807]
[1746909940843,0.2807799,655.36,654.04,1.58810807]
[1746909941140,0.2807799,655.35,654.04,1.58810807]
[1746909941644,0.2807799,655.34,654.04,1.58810807]
[1746909941845,0.2807799,655.33,654.04,1.58810807]
[1746909942144,0.2807799,655.32,654.04,1.58810807]
[1746909942644,0.2807799,655.35,654.04,1.58810807]
[1746909944646,0.26585484,655.34,654.04,1.58810807]
[1746909945245,0.2807799,655.33,654.04,1.58810807]
[1746909947746,0.2807799,656.17,654.04,1.58810807]
[1746909947947,0.2807799,656.16,654.04,1.58810807]
[1746909948245,0.2807799,656.15,654.04,1.58810807]
[1746909948441,0.2807799,656.14,654.04,1.58810807]
[1746909948647,0.2807799,656.13,654.04,1.58810807]
[1746909948941,0.2807799,656.12,654.04,1.58810807]
[1746909949148,1.96604543,656.09,654.04,1.58810807]
[1746909949345,0.85349502,656.08,654.04,1.58810807]
[1746909949648,0.2807799,656.07,654.04,1.58810807]
[1746909949846,0.2807799,656.06,654.04,1.58810807]
[1746909950043,0.2807799,656.05,654.04,1.58810807]
[1746909950348,0.2807799,656.04,654.04,1.58810807]
[1746909950548,0.2807799,656.03,654.04,1.58810807]
[1746909951044,0.2807799,656.02,654.04,1.58810807]
[1746909951449,1.96604543,656.0,654.04,1.58810807]
[1746909952250,0.85349502,655.99,654.04,1.58810807]
[1746909952648,0.85349502,655.98,654.04,1.58810807]
[1746909953051,1.96604543,655.91,654.04,1.58810807]
[1746909953444,0.85349502,655.9,654.04,1.58810807]
[1746909953746,0.85349502,655.89,654.04,1.58810807]
[1746909954049,0.2807799,655.88,654.04,1.58810807]
[1746909954346,0.2807799,655.87,654.04,1.58810807]
[1746909954649,0.85349502,655.86,654.04,1.58810807]
[1746909954851,1.11929605,655.86,654.04,1.58810807]
[1746909955152,1.96604543,655.56,654.04,1.58810807]
[1746909955750,0.85348437,655.55,654.04,1.58810807]
[1746909956050,0.28077636,655.54,654.04,1.58810807]
[1746909956350,1.96604543,655.48,654.04,1.58810807]
[1746909956850,0.85348437,655.47,654.04,1.58810807]
[1746909957150,0.28077636,655.46,654.04,1.58810807]
[1746909957452,0.28077636,655.45,654.04,1.58810807]
[1746909957848,1.96604543,655.39,654.04,1.58810807]
[1746909959052,0.28077636,655.38,654.04,1.58810807]
[1746909960653,1.96604543,655.39,654.04,1.58810807]
[1746909960851,0.2658518,655.37,654.04,1.58810807]
[1746909961451,0.28078007,655.36,654.04,1.58810807]
[1746909962548,0.28078007,656.23,654.04,1.58810807]
[1746909962752,0.26585383,655.35,654.04,1.58810807]
[1746909962954,0.28078007,656.22,654.04,1.58810807]
[1746909963452,0.28078007,656.21,654.04,1.58810807]
[1746909963650,0.54655268,656.21,654.04,1.58810807]
[1746909963856,0.28078007,656.2,654.04,1.58810807]
[1746909964250,0.28078007,656.19,654.04,1.58810807]
[1746909964556,0.28078007,656.18,654.04,1.58810807]
[1746909964859,0.28078007,656.17,654.04,1.58810807]
[1746909965157,0.28078007,656.16,654.04,1.58810807]
[1746909965554,0.28078007,656.15,654.04,1.58810807]
[1746909965751,0.26578885,656.15,654.04,1.58810807]
[1746909966057,0.28078915,656.14,654.04,1.58810807]
[1746909966356,0.28078915,656.13,654.04,1.58810807]
[1746909966656,0.28078915,656.12,654.04,1.58810807]
[1746909967154,0.28078915,656.11,654.04,1.58810807]
[1746909967457,0.28078915,656.1,654.04,1.58810807]
[1746909967857,0.28078915,656.09,654.04,1.58810807]
[1746909968461,0.85352276,656.08,654.04,1.58810807]
[1746909968760,1.11932582,656.08,654.04,1.58810807]
[1746909968956,0.85352276,656.07,654.04,1.58810807]
[1746909969262,1.96604543,655.55,654.04,1.58810807]
[1746909969765,0.85352276,655.54,654.04,1.58810807]
[1746909970165,0.28078915,655.53,654.04,1.58810807]
[1746909970467,1.96604543,655.55,654.04,1.58810807]
[1746909970766,0.8536044,655.54,654.04,1.58810807]
[1746909970974,1.96604543,655.55,654.04,1.58810807]
[1746909971368,0.85362558,655.54,654.04,1.58810807]
[1746909971664,1.11948956,655.54,654.04,1.58810807]
[1746909971970,0.28082338,655.53,654.04,1.58810807]
[1746909972263,0.28082338,655.52,654.04,1.58810807]
[1746909972569,0.28082338,655.51,654.04,1.58810807]
[1746909972869,0.28082338,655.5,654.04,1.58810807]
[1746909973173,0.28082338,655.49,654.04,1.58810807]
[1746909973776,0.28082338,655.48,654.04,1.58810807]
[1746909974377,0.28082338,655.47,654.04,1.58810807]
[1746909974575,0.28082338,655.46,654.04,1.58810807]
[1746909974870,0.28082338,655.45,654.04,1.58810807]
[1746909975170,0.28082338,655.44,654.04,1.58810807]
[1746909975474,0.28082338,655.43,654.04,1.58810807]
[1746909975874,0.28082338,655.42,654.04,1.58810807]
[1746909976273,0.28082338,655.41,654.04,1.58810807]
[1746909976978,0.28082338,655.4,654.04,1.58810807]
[1746909977571,0.28082338,655.39,654.04,1.58810807]
[1746909977777,0.5466965,655.39,654.04,1.58810807]
[1746909977977,0.28082338,655.38,654.04,1.58810807]
[1746909978276,1.96604543,655.31,654.04,1.58810807]
[1746909978676,0.85362558,655.3,654.04,1.58810807]
[1746909978976,0.28082338,655.29,654.04,1.58810807]
[1746909979578,0.28082338,655.28,654.04,1.58810807]
[1746909979879,0.28082338,655.27,654.04,1.58810807]
[1746909980279,0.28082338,655.26,654.04,1.58810807]
[1746909980675,0.28082338,655.25,654.04,1.58810807]
[1746909980973,0.28082338,655.24,654.04,1.58810807]
[1746909981179,0.28082338,655.23,654.04,1.58810807]
[1746909981479,0.28082338,655.22,654.04,1.58810807]
[1746909981974,0.28082338,655.21,654.04,1.58810807]
[1746909983179,0.28082338,655.2,654.04,1.58810807]
[1746909983579,0.5467412,655.19,654.04,1.58810807]
[1746909983979,0.28082338,655.18,654.04,1.58810807]
[1746909984280,0.28082338,655.17,654.04,1.58810807]
[1746909984679,0.28082338,655.16,654.04,1.58810807]
[1746909985179,0.28082338,655.15,654.04,1.58810807]
[1746909985381,0.28082338,655.14,654.04,1.58810807]
[1746909985680,0.28082338,655.13,654.04,1.58810807]
[1746909986282,0.28082338,655.12,654.04,1.58810807]
[1746909986677,0.28082338,655.11,654.04,1.58810807]
[1746909986879,0.28082338,655.1,654.04,1.58810807]
[1746909987377,0.28082338,655.09,654.04,1.58810807]
[1746909987681,0.28082338,655.08,654.04,1.58810807]
[1746909988182,0.28082338,655.07,654.04,1.58810807]
[1746909988979,0.28082338,655.1,654.04,1.58810807]
[1746909989784,0.26594728,655.09,654.04,1.58810807]
[1746909990085,0.28082338,655.08,654.04,1.58810807]
[1746909991385,0.26594728,655.09,654.04,1.58810807]
[1746909991679,0.28089192,655.08,654.04,1.58810807]
[1746909992681,0.26594932,655.07,654.04,1.58810807]
[1746909993186,0.28089192,655.06,654.04,1.58810807]
[1746909995785,0.26594322,655.05,654.04,1.58810807]
[1746909996184,0.28089192,655.04,654.04,1.58810807]
[1746909996385,0.26594322,655.05,654.04,1.58810807]
[1746909996685,0.28088896,655.04,654.04,1.58810807]
[1746909997992,0.26594322,655.05,654.04,1.58810807]
[1746909998391,0.28086856,655.04,654.04,1.58810807]
[1746909998792,0.26585281,655.03,654.04,1.58810807]
[1746909999297,0.28086856,655.02,654.04,1.58810807]
[1746910001801,0.26591071,655.01,654.04,1.58810807]
[1746910002398,0.28086856,655.0,654.04,1.58810807]
[1746910004800,0.26584672,654.99,654.04,1.58810807]
[1746910005304,0.28086856,654.98,654.04,1.58810807]
[1746910007808,0.26585789,654.97,654.04,1.58810807]
[1746910008306,0.28086856,654.96,654.04,1.58810807]
[1746910008605,0.26585789,654.97,654.04,1.58810807]
[1746910009501,0.28080901,654.96,654.04,1.58810807]
[1746910009808,0.26585789,654.97,654.04,1.58810807]
[1746910010206,0.28080938,654.96,654.04,1.58810807]
[1746910010705,0.28080938,655.66,654.04,1.58810807]
[1746910010903,0.2658457,654.95,654.04,1.58810807]
[1746910011308,0.28080938,654.94,654.04,1.58810807]
[1746910011707,0.28080938,655.66,654.04,1.58810807]
[1746910012009,0.28080938,655.65,654.04,1.58810807]
[1746910012204,0.54665508,655.65,654.04,1.58810807]
[1746910012711,0.28080938,655.64,654.04,1.58810807]
[1746910013003,0.28080938,655.63,654.04,1.58810807]
[1746910013406,0.28080938,655.62,654.04,1.58810807]
[1746910013604,0.28080938,655.61,654.04,1.58810807]
[1746910013910,0.54665407,655.61,654.04,1.58810807]
[1746910014210,0.28080938,655.6,654.04,1.58810807]
[1746910014710,0.28080938,655.59,654.04,1.58810807]
[1746910015212,0.28080938,655.58,654.04,1.58810807]
[1746910015508,0.28080938,655.57,654.04,1.58810807]
[1746910016212,0.28080938,655.56,654.04,1.58810807]
[1746910016610,0.28080938,655.55,654.04,1.58810807]
[1746910016807,0.54666118,655.55,654.04,1.58810807]
[1746910017010,0.28080938,655.54,654.04,1.58810807]
[1746910017311,0.28080938,655.53,654.04,1.58810807]
[1746910017711,0.28080938,655.52,654.04,1.58810807]
[1746910018411,0.28080938,655.51,654.04,1.58810807]
[1746910018710,0.28080938,655.5,654.04,1.58810807]
[1746910019112,0.28080938,655.49,654.04,1.58810807]
[1746910019415,0.28080938,655.48,654.04,1.58810807]
[1746910019716,0.28080938,655.47,654.04,1.58810807]
[1746910019910,0.26585789,655.48,654.04,1.58810807]
[1746910020309,0.28081296,655.47,654.04,1.58810807]
[1746910020711,0.28081296,655.46,654.04,1.58810807]
[1746910021212,0.28081296,655.45,654.04,1.58810807]
[1746910021712,0.28081296,655.44,654.04,1.58810807]
[1746910022014,0.28081296,655.43,654.04,1.58810807]
[1746910022413,0.28081296,655.42,654.04,1.58810807]
[1746910022614,0.54667796,655.42,654.04,1.58810807]
[1746910022810,0.28081296,655.41,654.04,1.58810807]
[1746910023311,0.28081296,655.4,654.04,1.58810807]
[1746910024114,0.28081296,655.39,654.04,1.58810807]
[1746910024518,0.28081296,655.38,654.04,1.58810807]
[1746910024815,0.28081296,655.37,654.04,1.58810807]
[1746910025216,0.28081296,655.36,654.04,1.58810807]
[1746910025513,0.28081296,655.35,654.04,1.58810807]
[1746910025717,0.54668405,655.35,654.04,1.58810807]
[1746910026011,0.28081296,655.34,654.04,1.58810807]
[1746910026615,0.26587109,655.35,654.04,1.58810807]
[1746910027116,0.28081272,655.34,654.04,1.58810807]
[1746910027515,0.28081272,655.33,654.04,1.58810807]
[1746910027911,0.28081272,655.32,654.04,1.58810807]
[1746910028418,0.28081272,655.31,654.04,1.58810807]
[1746910028717,0.54670108,655.31,654.04,1.58810807]
[1746910028919,0.28081272,655.3,654.04,1.58810807]
[1746910029214,0.28081272,655.29,654.04,1.58810807]
[1746910029418,0.28081272,655.28,654.04,1.58810807]
[1746910029716,0.28081272,655.27,654.04,1.58810807]
[1746910030017,0.28081272,655.26,654.04,1.58810807]
[1746910030517,0.28081272,655.25,654.04,1.58810807]
[1746910030914,0.28081272,655.24,654.04,1.58810807]
[1746910031417,0.28081272,655.23,654.04,1.58810807]
[1746910031820,0.28081272,655.22,654.04,1.58810807]
[1746910032221,0.28081272,655.21,654.04,1.58810807]
[1746910032622,0.26588836,655.31,654.04,1.58810807]
[1746910032918,0.28081876,655.3,654.04,1.58810807]
[1746910033321,0.28081876,655.29,654.04,1.58810807]
[1746910033923,0.28081876,655.28,654.04,1.58810807]
[1746910034421,0.28081876,655.27,654.04,1.58810807]
[1746910034724,0.57279293,655.46,654.04,1.58810807]
[1746910034725,0.28081876,655.26,654.04,1.58810807]
[1746910035126,0.28081876,655.25,654.04,1.58810807]
[1746910035528,0.28081876,655.24,654.04,1.58810807]
[1746910036028,0.26589242,655.27,654.04,1.58810807]
[1746910036029,0.28081876,655.23,654.04,1.58810807]
[1746910036427,0.28081876,655.22,654.04,1.58810807]
[1746910036722,0.28081876,655.21,654.04,1.58810807]
[1746910037128,0.28081876,655.2,654.04,1.58810807]
[1746910037430,0.28081876,655.26,654.04,1.58810807]
[1746910037929,0.28081876,655.39,654.04,1.58810807]
[1746910038327,0.28081876,655.38,654.04,1.58810807]
[1746910038630,0.28081876,655.37,654.04,1.58810807]
[1746910039534,0.28081876,655.36,654.04,1.58810807]
[1746910039831,0.28081876,655.35,654.04,1.58810807]
[1746910040132,0.28081876,655.34,654.04,1.58810807]
[1746910040529,0.28081876,655.33,654.04,1.58810807]
[1746910040829,0.28081876,655.37,654.04,1.58810807]
[1746910041233,0.28081876,655.36,654.04,1.58810807]
[1746910041632,0.28081876,655.35,654.04,1.58810807]
[1746910041932,0.28081876,655.34,654.04,1.58810807]
[1746910042333,0.26587312,655.38,654.04,1.58810807]
[1746910042334,0.28081876,655.33,654.04,1.58810807]
[1746910042630,0.28081876,655.32,654.04,1.58810807]
[1746910042934,0.28081876,655.31,654.04,1.58810807]
[1746910043434,0.28081876,655.3,654.04,1.58810807]
[1746910043832,0.28081876,655.29,654.04,1.58810807]
[1746910044134,0.28081876,655.28,654.04,1.58810807]
[1746910044434,0.28081876,655.27,654.04,1.58810807]
[1746910045035,0.28081876,655.26,654.04,1.58810807]
[1746910045734,0.28081876,655.29,654.04,1.58810807]
[1746910046134,0.28081876,655.28,654.04,1.58810807]
[1746910046435,0.28081876,655.27,654.04,1.58810807]
[1746910046935,0.28081876,655.26,654.04,1.58810807]
[1746910047235,0.28081876,655.25,654.04,1.58810807]
[1746910047536,0.28081876,655.24,654.04,1.58810807]
[1746910047839,0.28081876,655.29,654.04,1.58810807]
[1746910048033,0.28081876,655.28,654.04,1.58810807]
[1746910048440,0.28081876,655.27,654.04,1.58810807]
[1746910048640,0.28081876,655.26,654.04,1.58810807]
[1746910048942,0.26587515,655.3,654.04,1.58810807]
[1746910048943,0.28081876,655.25,654.04,1.58810807]
[1746910049343,0.28081876,655.24,654.04,1.58810807]
[1746910049639,0.28081876,655.29,654.04,1.58810807]
[1746910050045,0.28081876,655.28,654.04,1.58810807]
[1746910050543,0.28081876,655.27,654.04,1.58810807]
[1746910050846,0.28081876,655.26,654.04,1.58810807]
[1746910051641,0.28081876,655.25,654.04,1.58810807]
[1746910052040,0.28081876,655.24,654.04,1.58810807]
[1746910052446,0.28081876,655.23,654.04,1.58810807]
[1746910052747,0.28081876,655.26,654.04,1.58810807]
[1746910053146,0.28081876,655.25,654.04,1.58810807]
[1746910053450,0.28081876,655.24,654.04,1.58810807]
[1746910053743,0.28081876,655.23,654.04,1.58810807]
[1746910054048,0.28081876,655.22,654.04,1.58810807]
[1746910054349,0.28081876,655.21,654.04,1.58810807]
[1746910054748,0.28081876,655.26,654.04,1.58810807]
[1746910055047,0.28081876,655.25,654.04,1.58810807]
[1746910055449,0.28081876,655.24,654.04,1.58810807]
[1746910055744,0.28081876,655.23,654.04,1.58810807]
[1746910056349,0.28081876,655.22,654.04,1.58810807]
[1746910056550,0.28081876,655.21,654.04,1.58810807]
[1746910056949,0.28081876,655.2,654.04,1.58810807]
[1746910057243,0.28081876,655.26,654.04,1.58810807]
[1746910057549,0.28081876,655.25,654.04,1.58810807]
[1746910057852,0.28081876,655.24,654.04,1.58810807]
[1746910058150,0.28081876,655.23,654.04,1.58810807]
[1746910058646,0.28081876,655.22,654.04,1.58810807]
[1746910058850,0.5466868,655.22,654.04,1.58810807]
[1746910059050,0.28081876,655.21,654.04,1.58810807]
[1746910059347,0.28081876,655.2,654.04,1.58810807]
[1746910060047,0.28081876,655.19,654.04,1.58810807]
[1746910060247,0.28081876,655.18,654.04,1.58810807]
[1746910060648,0.28081876,655.17,654.04,1.58810807]
[1746910060947,0.28081876,655.16,654.04,1.58810807]
[1746910061353,0.28081876,655.21,654.04,1.58810807]
[1746910067756,0.28081876,655.73,654.04,1.58810807]
[1746910067962,0.26587515,655.2,654.04,1.58810807]
[1746910068156,0.28081876,655.72,654.04,1.58810807]
[1746910068459,1.96604543,655.75,654.04,1.58810807]
[1746910068657,0.28076796,655.71,654.04,1.58810807]
[1746910068860,0.28076796,655.7,654.04,1.58810807]
[1746910069061,0.28076796,655.69,654.04,1.58810807]
[1746910069262,0.28076796,655.68,654.04,1.58810807]
[1746910069463,0.28076796,655.67,654.04,1.58810807]
[1746910069662,0.28076796,655.66,654.04,1.58810807]
[1746910069864,0.28076796,655.65,654.04,1.58810807]
[1746910070164,0.2658193,655.74,654.04,1.58810807]
[1746910070363,0.28076602,655.73,654.04,1.58810807]
[1746910070563,0.28076602,655.72,654.04,1.58810807]
[1746910070764,0.28076602,655.71,654.04,1.58810807]
[1746910070959,0.28076602,655.7,654.04,1.58810807]
[1746910071263,0.28076602,655.69,654.04,1.58810807]
[1746910071465,0.28076602,655.68,654.04,1.58810807]
[1746910071763,0.28076602,655.67,654.04,1.58810807]
[1746910071965,0.26581524,655.73,654.04,1.58810807]
[1746910072263,0.28076617,655.72,654.04,1.58810807]
[1746910072559,0.28076617,655.71,654.04,1.58810807]
[1746910072767,0.28076617,655.7,654.04,1.58810807]
[1746910072962,0.28076617,655.69,654.04,1.58810807]
[1746910073359,0.28076617,655.68,654.04,1.58810807]
[1746910073764,0.26581727,655.68,654.04,1.58810807]
[1746910073962,1.96604543,655.58,654.04,1.58810807]
[1746910074165,0.85346483,655.57,654.04,1.58810807]
[1746910074365,0.28076986,655.56,654.04,1.58810807]
[1746910074665,0.28076986,655.55,654.04,1.58810807]
[1746910074965,0.28076986,655.54,654.04,1.58810807]
[1746910075162,0.28076986,655.53,654.04,1.58810807]
[1746910075367,1.96604543,655.45,654.04,1.58810807]
[1746910075567,0.85346483,655.44,654.04,1.58810807]
[1746910075763,0.28076986,655.43,654.04,1.58810807]
[1746910076067,0.28076986,655.42,654.04,1.58810807]
[1746910076267,0.28076986,655.41,654.04,1.58810807]
[1746910076568,0.28076986,655.4,654.04,1.58810807]
[1746910076763,0.54661658,655.4,654.04,1.58810807]
[1746910076963,0.28076986,655.39,654.04,1.58810807]
[1746910077170,0.28076986,655.38,654.04,1.58810807]
[1746910077467,0.28076986,655.37,654.04,1.58810807]
[1746910077668,0.28076986,655.36,654.04,1.58810807]
[1746910078070,0.28076986,655.35,654.04,1.58810807]
[1746910078569,0.28076986,655.39,654.04,1.58810807]
[1746910078865,0.28076986,655.34,654.04,1.58810807]
[1746910079065,0.28076986,655.38,654.04,1.58810807]
[1746910079369,0.26584672,655.4,654.04,1.58810807]
[1746910079570,1.96604543,655.65,654.04,1.58810807]
[1746910079767,0.28076964,655.39,654.04,1.58810807]
[1746910079971,0.54659504,655.39,654.04,1.58810807]
[1746910080170,0.28076964,655.38,654.04,1.58810807]
[1746910080571,0.28076964,655.63,654.04,1.58810807]
[1746910080872,0.26582641,655.37,654.04,1.58810807]
[1746910081075,0.28076964,655.62,654.04,1.58810807]
[1746910081371,0.28076964,655.36,654.04,1.58810807]
[1746910081573,0.28076964,655.61,654.04,1.58810807]
[1746910081873,0.28076964,655.6,654.04,1.58810807]
[1746910082174,0.28076964,655.59,654.04,1.58810807]
[1746910082374,0.28076964,655.58,654.04,1.58810807]
[1746910082776,0.28076964,655.57,654.04,1.58810807]
[1746910083076,0.28076964,655.56,654.04,1.58810807]
[1746910083977,0.28076964,655.55,654.04,1.58810807]
[1746910084374,0.28076964,655.54,654.04,1.58810807]
[1746910084776,0.28076964,655.53,654.04,1.58810807]
[1746910085178,0.28076964,655.52,654.04,1.58810807]
[1746910085677,0.28076964,655.51,654.04,1.58810807]
[1746910085877,0.28076964,655.5,654.04,1.58810807]
[1746910086274,0.28076964,655.49,654.04,1.58810807]
[1746910086575,0.28076964,655.48,654.04,1.58810807]
[1746910087078,0.28076964,655.47,654.04,1.58810807]
[1746910087574,0.28076964,655.46,654.04,1.58810807]
[1746910087880,0.28076964,655.45,654.04,1.58810807]
[1746910088077,0.28076964,655.44,654.04,1.58810807]
[1746910088478,0.28076964,655.43,654.04,1.58810807]
[1746910088681,0.28076964,655.42,654.04,1.58810807]
[1746910088879,0.28076964,655.41,654.04,1.58810807]
[1746910089379,0.28076964,655.4,654.04,1.58810807]
[1746910089780,0.28076964,655.39,654.04,1.58810807]
[1746910090078,0.26583555,655.43,654.04,1.58810807]
[1746910090383,0.28077507,655.42,654.04,1.58810807]
[1746910090681,0.26583555,655.43,654.04,1.58810807]
[1746910091083,0.28077483,655.42,654.04,1.58810807]
[1746910091377,0.28077483,655.41,654.04,1.58810807]
[1746910091678,0.28077483,655.4,654.04,1.58810807]
[1746910091983,0.28077483,655.39,654.04,1.58810807]
[1746910092478,0.28077483,655.38,654.04,1.58810807]
[1746910092682,0.28077483,655.42,654.04,1.58810807]
[1746910093083,0.28077483,655.41,654.04,1.58810807]
[1746910093581,0.28077483,655.4,654.04,1.58810807]
[1746910093781,0.28077483,655.39,654.04,1.58810807]
[1746910094184,0.28077483,655.38,654.04,1.58810807]
[1746910094582,0.28077483,655.42,654.04,1.58810807]
[1746910094883,0.28077483,655.41,654.04,1.58810807]
[1746910095283,0.28077483,655.4,654.04,1.58810807]
[1746910095584,0.28077483,655.39,654.04,1.58810807]
[1746910095884,0.28077483,655.38,654.04,1.58810807]
[1746910096287,0.28077483,655.37,654.04,1.58810807]
[1746910096684,0.28077483,655.36,654.04,1.58810807]
[1746910096984,0.28077483,655.35,654.04,1.58810807]
[1746910097286,0.28077483,655.34,654.04,1.58810807]
[1746910097682,0.54662866,655.33,654.04,1.58810807]
[1746910097987,0.28077483,655.32,654.04,1.58810807]
[1746910098683,0.28077483,655.31,654.04,1.58810807]
[1746910098986,0.28077483,655.32,654.04,1.58810807]
[1746910099290,0.28077483,655.31,654.04,1.58810807]
[1746910099988,0.28077483,655.3,654.04,1.58810807]
[1746910100795,0.54665709,655.29,654.04,1.58810807]
[1746910101190,0.28077483,655.28,654.04,1.58810807]
[1746910103789,0.26588633,655.27,654.04,1.58810807]
[1746910104089,0.28077483,655.26,654.04,1.58810807]
[1746910104688,0.28077483,655.25,654.04,1.58810807]
[1746910105088,0.28077483,655.26,654.04,1.58810807]
[1746910106688,0.26589039,655.25,654.04,1.58810807]
[1746910106991,0.28077483,655.24,654.04,1.58810807]
[1746910109793,0.26589039,655.25,654.04,1.58810807]
[1746910110093,0.28081506,655.24,654.04,1.58810807]
[1746910110388,0.26589039,655.25,654.04,1.58810807]
[1746910110688,0.2808128,655.24,654.04,1.58810807]
[1746910112689,0.26589242,655.23,654.04,1.58810807]
[1746910112995,0.2808128,655.22,654.04,1.58810807]
[1746910114897,0.2808128,655.21,654.04,1.58810807]
[1746910115299,0.2808128,655.2,654.04,1.58810807]
[1746910115806,0.54670725,655.19,654.04,1.58810807]
[1746910116698,0.2808128,655.18,654.04,1.58810807]
[1746910117101,0.2808128,655.17,654.04,1.58810807]
[1746910117599,0.2808128,655.16,654.04,1.58810807]
[1746910117898,0.2808128,655.18,654.04,1.58810807]
[1746910118498,0.2808128,655.17,654.04,1.58810807]
[1746910118698,0.54671132,655.17,654.04,1.58810807]
[1746910118899,0.26589852,655.17,654.04,1.58810807]
[1746910119198,0.2808128,655.16,654.04,1.58810807]
[1746910119998,0.2808128,655.15,654.04,1.58810807]
[1746910120400,0.2808128,655.14,654.04,1.58810807]
[1746910120700,0.2808128,655.13,654.04,1.58810807]
[1746910121099,0.2808128,655.12,654.04,1.58810807]
[1746910121498,0.2808128,655.11,654.04,1.58810807]
[1746910121801,0.2808128,655.1,654.04,1.58810807]
[1746910122100,0.2808128,655.16,654.04,1.58810807]
[1746910122400,0.2808128,655.15,654.04,1.58810807]
[1746910122902,0.2808128,655.16,654.04,1.58810807]
[1746910123400,0.2808128,655.15,654.04,1.58810807]
[1746910123899,0.2808128,655.14,654.04,1.58810807]
[1746910124199,0.2808128,655.16,654.04,1.58810807]
[1746910124796,0.26587312,655.15,654.04,1.58810807]
[1746910125000,0.54668592,655.15,654.04,1.58810807]
[1746910125300,0.2808128,655.14,654.04,1.58810807]
[1746910126202,0.26587312,655.15,654.04,1.58810807]